fUSD/lending_fUSD_20240216
["ID","MTS","AMOUNT","RATE_DAILY","PERIOD"]
[314177312,1708047049367,-500.0,0.0003863,7]
[314177313,1708047049376,-500.0,0.0003863,7]
[314177314,1708047049385,-505.18403277,0.0003863,7]
[314177315,1708047049395,-402.79667361,0.0003863,7]
[314177316,1708047049404,-500.0,0.0003863,7]
[314177317,1708047049413,-630.88,0.0003863,7]
[314177318,1708047049423,-500.0,0.0003863,7]
[314177319,1708047049432,-500.0,0.0003863,7]
[314177320,1708047049441,-565.36238069,0.0003863,2]
[314177321,1708047049450,-500.0,0.0003863,7]
[314177322,1708047049459,-549.77,0.0003863,7]
[314177323,1708047049468,-500.0,0.0003863,7]
[314177324,1708047049479,-500.0,0.0003863,7]
[314177325,1708047049488,-500.0,0.0003863,7]
[314177326,1708047049498,-500.0,0.0003863,7]
[314177327,1708047049507,-500.0,0.0003863,7]
[314177328,1708047049516,-500.0,0.0003863,7]
[314177329,1708047049525,-527.08760599,0.0003863,7]
[314177330,1708047049535,-500.0,0.0003863,7]
[314177331,1708047049544,-500.0,0.0003863,7]
[314177332,1708047049553,-506.38621571,0.0003863,7]
[314177333,1708047049562,-5000.0,0.0003863,14]
[314177334,1708047049572,-250.0,0.0003863,7]
[314177335,1708047049582,-500.0,0.0003863,7]
[314177336,1708047049594,-500.0,0.0003863,7]
[314177337,1708047049604,-277.03250317,0.0003863,7]
[314177338,1708047049613,-500.0,0.0003863,7]
[314177339,1708047049623,-500.0,0.0003863,7]
[314177340,1708047049633,-500.0,0.0003863,7]
[314177341,1708047049643,-500.0,0.0003863,7]
[314177342,1708047049653,-500.0,0.0003863,7]
[314177343,1708047049664,-500.0,0.0003863,7]
[314177344,1708047049673,-500.0,0.0003863,7]
[314177345,1708047049682,-500.0,0.0003863,7]
[314177346,1708047049692,-647.32555237,0.0003863,7]
[314177347,1708047049701,-204.97845858,0.0003863,7]
[314177348,1708047049711,-500.0,0.0003863,7]
[314177349,1708047049720,-500.0,0.0003863,7]
[314177350,1708047049730,-500.0,0.0003863,7]
[314177351,1708047049739,-500.0,0.0003863,7]
[314177352,1708047049749,-585.38303997,0.0003863,7]
[314177353,1708047049758,-500.0,0.0003863,7]
[314177354,1708047049768,-500.0,0.0003863,7]
[314177355,1708047049777,-500.0,0.0003863,7]
[314177356,1708047049787,-500.0,0.0003863,7]
[314177357,1708047049796,-510.83,0.0003863,7]
[314177358,1708047049805,-500.0,0.0003863,7]
[314177359,1708047049815,-556.75185017,0.0003863,7]
[314177360,1708047049824,-518.98371549,0.0003863,7]
[314177361,1708047049834,-500.0,0.0003863,7]
[314177362,1708047049843,-500.0,0.0003863,7]
[314177363,1708047049852,-500.0,0.0003863,7]
[314177364,1708047049862,-500.0,0.0003863,7]
[314177365,1708047049871,-500.0,0.0003863,7]
[314177366,1708047049881,-204.85372404,0.0003863,7]
[314177367,1708047049890,-578.11910923,0.0003863,7]
[314177368,1708047049899,-500.0,0.0003863,7]
[314177369,1708047049908,-500.0,0.0003863,7]
[314177370,1708047049917,-500.0,0.0003863,7]
[314177371,1708047049927,-537.07880517,0.0003863,7]
[314177372,1708047049936,-500.0,0.0003863,7]
[314177373,1708047049945,-522.2152756,0.0003863,7]
[314177374,1708047049954,-500.0,0.0003863,7]
[314177375,1708047049963,-509.82188529,0.0003863,7]
[314177376,1708047049973,-1000.0,0.0003863,14]
[314177377,1708047049982,-164.52,0.0003863,7]
[314177378,1708047049991,-500.0,0.0003863,7]
[314177379,1708047050001,-500.0,0.0003863,7]
[314177380,1708047050010,-389.89892135,0.0003863,7]
[314177381,1708047050020,-500.0,0.0003863,7]
[314177382,1708047050030,-160.12032673,0.0003863,7]
[314177383,1708047050040,-500.0,0.0003863,7]
[314177384,1708047050050,-500.0,0.0003863,7]
[314177385,1708047050059,-500.0,0.0003863,7]
[314177386,1708047050069,-500.0,0.0003863,7]
[314177387,1708047050079,-500.0,0.0003863,7]
[314177388,1708047050089,-500.0,0.0003863,7]
[314177389,1708047050098,-615.18,0.0003863,7]
[314177390,1708047050107,-500.0,0.0003863,7]
[314177391,1708047050117,-500.0,0.0003863,7]
[314177392,1708047050127,-500.0,0.0003863,7]
[314177393,1708047050137,-500.0,0.0003863,7]
[314177394,1708047050146,-500.0,0.0003863,7]
[314177395,1708047050156,-500.0,0.0003863,7]
[314177396,1708047050165,-500.0,0.0003863,7]
[314177397,1708047050176,-421.49458455,0.0003863,7]
[314177398,1708047050187,-500.0,0.0003863,7]
[314177399,1708047050196,-500.0,0.0003863,7]
[314177400,1708047050206,-1799.59,0.0003863,7]
[314177401,1708047050215,-500.0,0.0003863,7]
[314177402,1708047050224,-500.0,0.0003863,7]
[314177403,1708047050233,-670.83,0.0003863,7]
[314177404,1708047050242,-511.61,0.0003863,7]
[314177405,1708047050252,-500.0,0.0003863,7]
[314177406,1708047050261,-500.0,0.0003863,7]
[314177407,1708047050270,-500.0,0.0003863,7]
[314177408,1708047050280,-500.0,0.0003863,7]
[314177409,1708047050291,-500.0,0.0003863,7]
[314177410,1708047050304,-500.0,0.0003863,7]
[314177411,1708047050314,-500.0,0.0003863,7]
[314177412,1708047050324,-500.0,0.0003863,7]
[314177413,1708047050334,-597.55,0.0003863,7]
[314177414,1708047050344,-500.0,0.0003863,7]
[314177415,1708047050354,-500.0,0.0003863,7]
[314177416,1708047050363,-500.0,0.0003863,7]
[314177417,1708047050373,-500.0,0.0003863,7]
[314177418,1708047050383,-500.0,0.0003863,7]
[314177419,1708047050394,-500.0,0.0003863,7]
[314177420,1708047050404,-500.0,0.0003863,7]
[314177421,1708047050414,-500.0,0.0003863,7]
[314177422,1708047050423,-500.0,0.0003863,7]
[314177423,1708047050433,-500.0,0.0003863,7]
[314177424,1708047050444,-500.0,0.0003863,7]
[314177425,1708047050454,-500.0,0.0003863,7]
[314177426,1708047050463,-1340.23,0.0003863,7]
[314177427,1708047050473,-500.0,0.0003863,7]
[314177428,1708047050483,-500.0,0.0003863,7]
[314177429,1708047050493,-529.22,0.0003863,7]
[314177430,1708047050505,-500.0,0.0003863,7]
[314177431,1708047050515,-500.0,0.0003863,7]
[314177432,1708047050524,-500.0,0.0003863,7]
[314177433,1708047050534,-500.0,0.0003863,7]
[314177434,1708047050543,-500.0,0.0003863,7]
[314177435,1708047050553,-500.0,0.0003863,7]
[314177436,1708047050563,-500.0,0.0003863,7]
[314177437,1708047050573,-500.0,0.0003863,7]
[314177438,1708047050583,-500.0,0.0003863,7]
[314177439,1708047050593,-500.0,0.0003863,7]
[314177440,1708047050603,-500.0,0.0003863,7]
[314177441,1708047050612,-540.72,0.0003863,7]
[314177442,1708047050623,-500.0,0.0003863,7]
[314177443,1708047050633,-500.0,0.0003863,7]
[314177444,1708047050642,-500.0,0.0003863,7]
[314177445,1708047050653,-500.0,0.0003863,7]
[314177446,1708047050663,-500.0,0.0003863,7]
[314177447,1708047050673,-500.0,0.0003863,7]
[314177448,1708047050683,-500.0,0.0003863,7]
[314177449,1708047050694,-500.0,0.0003863,7]
[314177450,1708047050704,-571.58,0.0003863,7]
[314177451,1708047050713,-500.0,0.0003863,7]
[314177452,1708047050723,-500.0,0.0003863,7]
[314177453,1708047050733,-500.0,0.0003863,7]
[314177454,1708047050742,-500.0,0.0003863,7]
[314177455,1708047050752,-500.0,0.0003863,7]
[314177456,1708047050762,-500.0,0.0003863,7]
[314177457,1708047050771,-500.0,0.0003863,7]
[314177458,1708047050782,-500.0,0.0003863,7]
[314177459,1708047050791,-500.0,0.0003863,7]
[314177460,1708047050802,-500.0,0.0003863,7]
[314177461,1708047050811,-229.89893227,0.0003863,7]
[314177462,1708047050821,-500.0,0.0003863,7]
[314177463,1708047050831,-500.0,0.0003863,7]
[314177464,1708047050841,-721.24,0.0003863,7]
[314177465,1708047050851,-642.45,0.0003863,7]
[314177466,1708047050860,-500.0,0.0003863,7]
[314177467,1708047050870,-620.99,0.0003863,7]
[314177468,1708047050880,-500.0,0.0003863,7]
[314177469,1708047050889,-500.0,0.0003863,7]
[314177470,1708047050899,-500.0,0.0003863,7]
[314177471,1708047050908,-500.0,0.0003863,7]
[314177472,1708047050918,-500.0,0.0003863,7]
[314177473,1708047050927,-500.0,0.0003863,7]
[314177474,1708047050937,-500.0,0.0003863,7]
[314177475,1708047050946,-1409.78,0.0003863,7]
[314177476,1708047050955,-500.0,0.0003863,7]
[314177477,1708047050965,-500.0,0.0003863,7]
[314177478,1708047050974,-500.0,0.0003863,7]
[314177479,1708047050984,-500.0,0.0003863,7]
[314177480,1708047050993,-574.0,0.0003863,7]
[314177481,1708047051003,-500.0,0.0003863,7]
[314177482,1708047051012,-7971.43,0.0003863,7]
[314177483,1708047051021,-500.0,0.0003863,7]
[314177484,1708047051031,-500.0,0.0003863,7]
[314177485,1708047051041,-1127.98,0.0003863,7]
[314177486,1708047051050,-500.0,0.0003863,7]
[314177487,1708047051060,-612.25967779,0.0003863,7]
[314177488,1708047051071,-550.96785928,0.0003863,7]
[314177489,1708047051080,-569.42022458,0.0003863,7]
[314177490,1708047051090,-584.68052669,0.0003863,7]
[314177491,1708047051100,-604.58089464,0.0003863,7]
[314177492,1708047051109,-682.14,0.0003863,7]
[314177493,1708047051119,-552.08720798,0.0003863,7]
[314177494,1708047051128,-500.0,0.0003863,7]
[314177495,1708047051138,-500.0,0.0003863,7]
[314177496,1708047051147,-602.43516096,0.0003863,7]
[314177497,1708047051157,-500.0,0.0003863,7]
[314177498,1708047051166,-500.0,0.0003863,7]
[314177499,1708047051175,-150.01230692,0.0003863,7]
[314177500,1708047051185,-157.39,0.00038632,2]
[314177501,1708047051195,-154.0,0.0003864,2]
[314177502,1708047051205,-333.021624,0.00038648,25]
[314177503,1708047051215,-186.0,0.00038678,7]
[314177504,1708047051224,-1050.0,0.00038701,7]
[314177505,1708047051234,-628.0,0.00038701,7]
[314177506,1708047051244,-728.0,0.00038701,7]
[314177507,1708047051254,-200.0,0.00038701,7]
[314177508,1708047051263,-151.0,0.00038713,4]
[314177509,1708047051273,-1356.9686549,0.00038715,2]
[314177510,1708047051283,-2000.0,0.0003874,2]
[314177511,1708047051293,-200.0,0.0003874,2]
[314177512,1708047051303,-200.0,0.0003874,2]
[314177513,1708047051315,-3180.62,0.00038748,2]
[314177514,1708047051325,-151.0,0.00038759,7]
[314177515,1708047051338,-1186.62475854,0.00038765,2]
[314177516,1708047051353,-333.021624,0.00038798,24]
[314177517,1708047051368,-151.0,0.000388,7]
[314177518,1708047051377,-158.073213,0.000388,7]
[314177519,1708047051388,-730.0,0.000388,2]
[314177520,1708047051399,-252.59,0.000388,2]
[314177521,1708047051410,-186.0,0.00038815,7]
[314177522,1708047051419,-1383.45234104,0.00038857,2]
[314177523,1708047051429,-167.0,0.00038858,2]
[314177524,1708047051440,-1231.0,0.00038867,2]
[314177525,1708047051450,-707.0,0.00038867,2]
[314177526,1708047051459,-216.0,0.00038867,2]
[314177527,1708047051469,-1254.0,0.00038867,2]
[314177528,1708047051480,-1003.0,0.00038867,2]
[314177529,1708047051490,-237.0,0.00038867,2]
[314177530,1708047051499,-429.0,0.00038867,2]
[314177531,1708047051508,-857.0,0.00038867,2]
[314177532,1708047051518,-451.879,0.00038867,2]
[314177533,1708047051528,-150.0,0.00038867,2]
[314177534,1708047051538,-321.0,0.00038867,2]
[314177535,1708047051548,-1137.0,0.00038867,2]
[314177536,1708047051559,-454.0,0.00038867,2]
[314177537,1708047051569,-150.0,0.00038867,2]
[314177538,1708047051579,-280.401,0.00038867,2]
[314177539,1708047051589,-8164.0,0.00038867,2]
[314177540,1708047051599,-2289.0,0.00038867,2]
[314177541,1708047051609,-246.98,0.00038867,2]
[314177542,1708047051620,-189.445,0.00038867,2]
[314177543,1708047051630,-4060.0,0.00038867,2]
[314177544,1708047051641,-2927.0,0.00038867,2]
[314177545,1708047051775,-19846.0,0.00038867,2]
[314177546,1708047051785,-2835.0,0.00038867,2]
[314177547,1708047051794,-1037.0,0.00038867,2]
[314177548,1708047051804,-953.0,0.00038867,2]
[314177549,1708047051813,-842.0,0.00038867,2]
[314177550,1708047051822,-155.0,0.0003887,4]
[314177551,1708047051832,-151.0,0.00038896,7]
[314177552,1708047051841,-333.021624,0.00038898,25]
[314177553,1708047051850,-1000.0,0.000389,7]
[314177554,1708047051859,-4338.05992612,0.00038903,2]
[314177555,1708047051869,-500.0,0.00038904,7]
[314177556,1708047051878,-500.0,0.00038904,7]
[314177557,1708047051888,-500.0,0.00038904,7]
[314177558,1708047051897,-500.0,0.00038904,7]
[314177559,1708047051907,-500.0,0.00038904,7]
[314177560,1708047051916,-342.90386106,0.00038904,7]
[314177561,1708047051926,-500.0,0.00038904,7]
[314177562,1708047051935,-628.9877523,0.00038904,7]
[314177563,1708047051945,-199.85920608,0.00038904,7]
[314177564,1708047051954,-5000.0,0.00038904,14]
[314177565,1708047051963,-500.0,0.00038904,7]
[314177566,1708047051973,-500.0,0.00038904,7]
[314177567,1708047051982,-500.0,0.00038904,7]
[314177568,1708047051992,-1000.0,0.00038904,14]
[314177569,1708047052001,-500.0,0.00038904,7]
[314177570,1708047052011,-500.0,0.00038904,7]
[314177571,1708047052020,-150.0,0.00038904,2]
[314177572,1708047052030,-500.0,0.00038904,7]
[314177573,1708047052039,-500.0,0.00038904,7]
[314177574,1708047052049,-500.0,0.00038904,7]
[314177575,1708047052058,-500.0,0.00038904,7]
[314177576,1708047052067,-615.18,0.00038904,7]
[314177577,1708047052076,-500.0,0.00038904,7]
[314177578,1708047052085,-500.0,0.00038904,7]
[314177579,1708047052094,-500.0,0.00038904,7]
[314177580,1708047052103,-500.0,0.00038904,7]
[314177581,1708047052114,-500.0,0.00038904,7]
[314177582,1708047052123,-500.0,0.00038904,7]
[314177583,1708047052132,-500.0,0.00038904,7]
[314177584,1708047052142,-500.0,0.00038904,7]
[314177585,1708047052152,-1799.59,0.00038904,7]
[314177586,1708047052162,-500.0,0.00038904,7]
[314177587,1708047052171,-500.0,0.00038904,7]
[314177588,1708047052180,-670.83,0.00038904,7]
[314177589,1708047052191,-511.61,0.00038904,7]
[314177590,1708047052201,-500.0,0.00038904,7]
[314177591,1708047052210,-321.56731359,0.00038904,7]
[314177592,1708047052219,-500.0,0.00038904,7]
[314177593,1708047052228,-500.0,0.00038904,7]
[314177594,1708047052238,-500.0,0.00038904,7]
[314177595,1708047052247,-500.0,0.00038904,7]
[314177596,1708047052256,-597.55,0.00038904,7]
[314177597,1708047052266,-500.0,0.00038904,7]
[314177598,1708047052275,-500.0,0.00038904,7]
[314177599,1708047052287,-500.0,0.00038904,7]
[314177600,1708047052299,-500.0,0.00038904,7]
[314177601,1708047052308,-500.0,0.00038904,7]
[314177602,1708047052320,-500.0,0.00038904,7]
[314177603,1708047052329,-500.0,0.00038904,7]
[314177604,1708047052339,-1340.23,0.00038904,7]
[314177605,1708047052348,-500.0,0.00038904,7]
[314177606,1708047052358,-500.0,0.00038904,7]
[314177607,1708047052369,-529.22,0.00038904,7]
[314177608,1708047052379,-500.0,0.00038904,7]
[314177609,1708047052390,-500.0,0.00038904,7]
[314177610,1708047052401,-500.0,0.00038904,7]
[314177611,1708047052411,-500.0,0.00038904,7]
[314177612,1708047052421,-500.0,0.00038904,7]
[314177613,1708047052431,-500.0,0.00038904,7]
[314177614,1708047052443,-500.0,0.00038904,7]
[314177615,1708047052452,-500.0,0.00038904,7]
[314177616,1708047052462,-540.72,0.00038904,7]
[314177617,1708047052472,-500.0,0.00038904,7]
[314177618,1708047052481,-500.0,0.00038904,7]
[314177619,1708047052491,-500.0,0.00038904,7]
[314177620,1708047052500,-500.0,0.00038904,7]
[314177621,1708047052510,-500.0,0.00038904,7]
[314177622,1708047052520,-336.25588189,0.00038904,7]
[314177623,1708047052530,-500.0,0.00038904,7]
[314177624,1708047052540,-500.0,0.00038904,7]
[314177625,1708047052550,-571.58,0.00038904,7]
[314177626,1708047052563,-500.0,0.00038904,7]
[314177627,1708047052572,-500.0,0.00038904,7]
[314177628,1708047052582,-645.42306364,0.00038904,7]
[314177629,1708047052592,-325.6013085,0.00038904,7]
[314177630,1708047052601,-500.0,0.00038904,7]
[314177631,1708047052611,-606.03496652,0.00038904,7]
[314177632,1708047052621,-500.0,0.00038904,7]
[314177633,1708047052631,-500.0,0.00038904,7]
[314177634,1708047052641,-500.0,0.00038904,7]
[314177635,1708047052651,-500.0,0.00038904,7]
[314177636,1708047052662,-721.24,0.00038904,7]
[314177637,1708047052672,-642.45,0.00038904,7]
[314177638,1708047052681,-500.0,0.00038904,7]
[314177639,1708047052692,-500.0,0.00038904,7]
[314177640,1708047052701,-500.0,0.00038904,7]
[314177641,1708047052711,-500.0,0.00038904,7]
[314177642,1708047052721,-500.0,0.00038904,7]
[314177643,1708047052730,-300.0,0.00038904,7]
[314177644,1708047052740,-500.0,0.00038904,7]
[314177645,1708047052749,-500.0,0.00038904,7]
[314177646,1708047052759,-1409.78,0.00038904,7]
[314177647,1708047052770,-244.77109087,0.00038904,7]
[314177648,1708047052779,-574.0,0.00038904,7]
[314177649,1708047052789,-7971.43,0.00038904,7]
[314177650,1708047052798,-172.27,0.00038904,7]
[314177651,1708047052808,-1127.98,0.00038904,7]
[314177652,1708047052817,-500.0,0.00038904,7]
[314177653,1708047052827,-682.14,0.00038904,7]
[314177654,1708047052836,-649.24852528,0.00038904,7]
[314177655,1708047052849,-500.0,0.00038904,7]
[314177656,1708047052858,-154.56303244,0.00038904,7]
[314177657,1708047052868,-500.0,0.00038904,7]
[314177658,1708047052877,-150.0,0.00038931,2]
[314177659,1708047052886,-150.408,0.00038931,2]
[314177660,1708047052895,-186.0,0.00038952,7]
[314177661,1708047052905,-333.021624,0.00038988,26]
[314177662,1708047052914,-394.68,0.00039,7]
[314177663,1708047052923,-1000.0,0.00039,60]
[314177664,1708047052933,-500.0,0.00039,2]
[314177665,1708047052943,-456.06,0.00039,3]
[314177666,1708047052953,-456.06,0.00039,3]
[314177667,1708047052962,-456.06,0.00039,3]
[314177668,1708047052971,-456.06,0.00039,3]
[314177669,1708047052980,-456.06,0.00039,3]
[314177670,1708047052989,-456.06,0.00039,3]
[314177671,1708047052999,-456.06,0.00039,3]
[314177672,1708047053008,-456.06,0.00039,3]
[314177673,1708047053017,-456.06,0.00039,3]
[314177674,1708047053027,-456.06,0.00039,3]
[314177675,1708047053036,-456.06,0.00039,3]
[314177676,1708047053046,-456.06,0.00039,3]
[314177677,1708047053055,-456.06,0.00039,3]
[314177678,1708047053064,-456.06,0.00039,3]
[314177679,1708047053074,-456.06,0.00039,3]
[314177680,1708047053084,-456.06,0.00039,3]
[314177681,1708047053093,-456.06,0.00039,3]
[314177682,1708047053103,-155.01,0.00039,3]
[314177683,1708047053112,-3000.0,0.0003903,2]
[314177684,1708047053122,-183.6576133,0.00039032,2]
[314177685,1708047053131,-151.0,0.00039033,7]
[314177686,1708047053140,-23401.24339038,0.00039036,12]
[314177687,1708047053149,-1050.0,0.00039046,7]
[314177688,1708047053158,-628.0,0.00039046,7]
[314177689,1708047053168,-728.0,0.00039046,7]
[314177690,1708047053178,-200.0,0.00039046,7]
[314177691,1708047053187,-1383.45234104,0.00039055,2]
[314177692,1708047053197,-186.0,0.00039089,7]
[314177693,1708047053206,-333.021624,0.00039098,25]
[314177694,1708047053216,-200.0,0.00039127,2]
[314177695,1708047053226,-200.0,0.00039127,2]
[314177696,1708047053235,-1356.96865492,0.00039167,2]
[314177697,1708047053244,-151.0,0.0003917,7]
[314177698,1708047053254,-500.0,0.00039178,7]
[314177699,1708047053263,-423.3391392,0.00039178,7]
[314177700,1708047053273,-500.0,0.00039178,7]
[314177701,1708047053283,-500.0,0.00039178,7]
[314177702,1708047053292,-160.38,0.00039178,7]
[314177703,1708047053305,-1833.78553632,0.00039178,14]
[314177704,1708047053314,-500.0,0.00039178,7]
[314177705,1708047053323,-194.26,0.00039178,7]
[314177706,1708047053333,-500.0,0.00039178,7]
[314177707,1708047053342,-500.0,0.00039178,7]
[314177708,1708047053351,-500.0,0.00039178,7]
[314177709,1708047053361,-500.0,0.00039178,7]
[314177710,1708047053372,-500.0,0.00039178,7]
[314177711,1708047053382,-500.0,0.00039178,7]
[314177712,1708047053391,-615.18,0.00039178,7]
[314177713,1708047053401,-500.0,0.00039178,7]
[314177714,1708047053410,-500.0,0.00039178,7]
[314177715,1708047053419,-500.0,0.00039178,7]
[314177716,1708047053428,-500.0,0.00039178,7]
[314177717,1708047053438,-500.0,0.00039178,7]
[314177718,1708047053447,-500.0,0.00039178,7]
[314177719,1708047053457,-1799.59,0.00039178,7]
[314177720,1708047053466,-500.0,0.00039178,7]
[314177721,1708047053476,-500.0,0.00039178,7]
[314177722,1708047053486,-670.83,0.00039178,7]
[314177723,1708047053495,-511.61,0.00039178,7]
[314177724,1708047053505,-508.93582505,0.00039178,7]
[314177725,1708047053514,-500.0,0.00039178,7]
[314177726,1708047053524,-500.0,0.00039178,7]
[314177727,1708047053534,-500.0,0.00039178,7]
[314177728,1708047053543,-500.0,0.00039178,7]
[314177729,1708047053553,-597.55,0.00039178,7]
[314177730,1708047053563,-500.0,0.00039178,7]
[314177731,1708047053572,-500.0,0.00039178,7]
[314177732,1708047053581,-500.0,0.00039178,7]
[314177733,1708047053591,-500.0,0.00039178,7]
[314177734,1708047053602,-1340.23,0.00039178,7]
[314177735,1708047053611,-500.0,0.00039178,7]
[314177736,1708047053622,-529.22,0.00039178,7]
[314177737,1708047053631,-500.0,0.00039178,7]
[314177738,1708047053641,-500.0,0.00039178,7]
[314177739,1708047053651,-500.0,0.00039178,7]
[314177740,1708047053660,-500.0,0.00039178,7]
[314177741,1708047053681,-500.0,0.00039178,7]
[314177742,1708047053691,-540.72,0.00039178,7]
[314177743,1708047053701,-571.58,0.00039178,7]
[314177744,1708047053711,-500.0,0.00039178,7]
[314177745,1708047053720,-500.0,0.00039178,7]
[314177746,1708047053730,-500.0,0.00039178,7]
[314177747,1708047053740,-277.92,0.00039178,7]
[314177748,1708047053750,-369.78,0.00039178,7]
[314177749,1708047053759,-500.0,0.00039178,7]
[314177750,1708047053770,-721.24,0.00039178,7]
[314177751,1708047053779,-642.45,0.00039178,7]
[314177752,1708047053788,-500.0,0.00039178,7]
[314177753,1708047053798,-500.0,0.00039178,7]
[314177754,1708047053807,-500.0,0.00039178,7]
[314177755,1708047053817,-500.0,0.00039178,7]
[314177756,1708047053826,-500.0,0.00039178,7]
[314177757,1708047053838,-1409.78,0.00039178,7]
[314177758,1708047053848,-574.0,0.00039178,7]
[314177759,1708047053858,-7971.43,0.00039178,7]
[314177760,1708047053869,-1127.98,0.00039178,7]
[314177761,1708047053878,-500.0,0.00039178,7]
[314177762,1708047053887,-682.14,0.00039178,7]
[314177763,1708047053896,-500.0,0.00039178,7]
[314177764,1708047053906,-545.18535255,0.00039178,7]
[314177765,1708047053916,-333.021624,0.00039188,25]
[314177766,1708047053926,-3743.05915225,0.0003921,9]
[314177767,1708047053935,-186.0,0.00039226,7]
[314177768,1708047053946,-266.21,0.0003926,2]
[314177769,1708047053956,-333.021624,0.00039298,25]
[314177770,1708047053966,-151.0,0.00039307,7]
[314177771,1708047053975,-158.24,0.00039312,2]
[314177772,1708047053985,-186.0,0.00039363,7]
[314177773,1708047053994,-1050.0,0.00039392,7]
[314177774,1708047054004,-628.0,0.00039392,7]
[314177775,1708047054014,-728.0,0.00039392,7]
[314177776,1708047054023,-200.0,0.00039392,7]
[314177777,1708047054033,-333.021624,0.00039398,24]
[314177778,1708047054042,-152.99633916,0.00039421,4]
[314177779,1708047054051,-151.0,0.00039444,7]
[314177780,1708047054061,-507.7576959,0.00039451,7]
[314177781,1708047054071,-487.55764855,0.00039452,7]
[314177782,1708047054080,-500.0,0.00039452,7]
[314177783,1708047054090,-174.36508318,0.00039452,7]
[314177784,1708047054100,-208.61,0.00039452,7]
[314177785,1708047054110,-208.86,0.00039452,7]
[314177786,1708047054120,-151.0,0.00039452,7]
[314177787,1708047054129,-500.0,0.00039452,7]
[314177788,1708047054138,-300.0,0.00039452,2]
[314177789,1708047054148,-500.0,0.00039452,7]
[314177790,1708047054157,-500.0,0.00039452,7]
[314177791,1708047054166,-500.0,0.00039452,7]
[314177792,1708047054176,-615.18,0.00039452,7]
[314177793,1708047054185,-500.0,0.00039452,7]
[314177794,1708047054194,-500.0,0.00039452,7]
[314177795,1708047054203,-500.0,0.00039452,7]
[314177796,1708047054213,-500.0,0.00039452,7]
[314177797,1708047054222,-1799.59,0.00039452,7]
[314177798,1708047054231,-499.58800889,0.00039452,7]
[314177799,1708047054240,-500.0,0.00039452,7]
[314177800,1708047054250,-670.83,0.00039452,7]
[314177801,1708047054259,-511.61,0.00039452,7]
[314177802,1708047054268,-500.0,0.00039452,7]
[314177803,1708047054277,-500.0,0.00039452,7]
[314177804,1708047054287,-533.24,0.00039452,7]
[314177805,1708047054297,-500.0,0.00039452,7]
[314177806,1708047054306,-597.55,0.00039452,7]
[314177807,1708047054320,-500.0,0.00039452,7]
[314177808,1708047054330,-500.0,0.00039452,7]
[314177809,1708047054339,-500.0,0.00039452,7]
[314177810,1708047054350,-1340.23,0.00039452,7]
[314177811,1708047054361,-500.0,0.00039452,7]